[Event "Titled Tuesday Blitz July 26 Early 2022"]
[White "Lewtak, Damian"]
[Black "Maksimovic, Bojan"]
[WhiteFideId "1141724"]
[BlackFideId "14408120"]
[WhiteElo "2359"]
[BlackElo "2453"]
[Result "0-1"]
[Round "02"]
[TimeControl "180+1"]
[Date "2022.07.26"]
[WhiteClock "0:00:30"]
[BlackClock "0:00:41"]

1. e4 {[%clk 0:03:00]}  c5 {[%clk 0:02:58]} 2. Nf3 {[%clk 0:03:00]}  Nc6 {[%clk 0:02:58]} 3. Bb5 {[%clk 0:02:59]}  e6 {[%clk 0:02:58]} 4. Bxc6 {[%clk 0:02:59]}  bxc6 {[%clk 0:02:58]} 5. d3 {[%clk 0:02:59]}  Ne7 {[%clk 0:02:58]} 6. Qe2 {[%clk 0:02:58]}  Ng6 {[%clk 0:02:55]} 7. h4 {[%clk 0:02:57]}  h5 {[%clk 0:02:54]} 8. e5 {[%clk 0:02:53]}  f6 {[%clk 0:02:53]} 9. Nc3 {[%clk 0:02:37]}  Qc7 {[%clk 0:02:51]} 10. exf6 {[%clk 0:02:25]}  gxf6 {[%clk 0:02:52]} 11. Qe4 {[%clk 0:02:20]}  Kf7 {[%clk 0:02:49]} 12. Bd2 {[%clk 0:02:14]}  d5 {[%clk 0:02:49]} 13. Qa4 {[%clk 0:02:14]}  Rb8 {[%clk 0:02:44]} 14. b3 {[%clk 0:01:50]}  Rb4 {[%clk 0:02:36]} 15. Qa3 {[%clk 0:01:45]}  Rg4 {[%clk 0:02:14]} 16. Ne2 {[%clk 0:01:20]}  Rxg2 {[%clk 0:02:07]} 17. O-O-O {[%clk 0:01:12]}  Rxf2 {[%clk 0:02:03]} 18. Rdf1 {[%clk 0:01:11]}  Rxe2 {[%clk 0:01:59]} 19. Rhg1 {[%clk 0:01:00]}  e5 {[%clk 0:01:25]} 20. Ba5 {[%clk 0:00:58]}  Qd7 {[%clk 0:01:16]} 21. Kd1 {[%clk 0:00:57]}  Nf4 {[%clk 0:01:08]} 22. Bd2 {[%clk 0:00:50]}  c4 {[%clk 0:01:04]} 23. Qc1 {[%clk 0:00:38]}  cxd3 {[%clk 0:01:00]} 24. cxd3 {[%clk 0:00:37]}  Rxd2+ {[%clk 0:00:55]} 25. Qxd2 {[%clk 0:00:31]}  Bh6 {[%clk 0:00:55]} 26. Qf2 {[%clk 0:00:27]}  Ba6 {[%clk 0:00:44]} 27. Qg3 {[%clk 0:00:15]}  Qg4 {[%clk 0:00:33]} 28. Qf2 {[%clk 0:00:12]}  Qd7 {[%clk 0:00:24]} 29. Qg3 {[%clk 0:00:11]}  Ke7 {[%clk 0:00:22]} 30. Re1 {[%clk 0:00:08]}  Bxd3 {[%clk 0:00:20]} 31. Nxe5 {[%clk 0:00:07]}  fxe5 {[%clk 0:00:21]} 32. Rxe5+ {[%clk 0:00:08]}  Kd8 {[%clk 0:00:21]} 33. Re3 {[%clk 0:00:06]}  Qg4+ {[%clk 0:00:20]} 34. Qxg4 {[%clk 0:00:06]}  hxg4 {[%clk 0:00:21]} 35. Rxg4 {[%clk 0:00:06]}  Be4 {[%clk 0:00:21]} 36. Reg3 {[%clk 0:00:04]}  Ke7 {[%clk 0:00:19]} 37. Rg8 {[%clk 0:00:04]}  Rxg8 {[%clk 0:00:19]} 38. Rxg8 {[%clk 0:00:05]}  d4 {[%clk 0:00:18]} 39. Ra8 {[%clk 0:00:05]}  Nd5 {[%clk 0:00:16]} 40. Rxa7+ {[%clk 0:00:06]}  Kf6 {[%clk 0:00:16]} 41. Rd7 {[%clk 0:00:05]}  Nc3+ {[%clk 0:00:16]} 42. Ke1 {[%clk 0:00:04]}  d3 {[%clk 0:00:16]} 43. Rd6+ {[%clk 0:00:05]}  Kg7 {[%clk 0:00:16]} 44. a4 {[%clk 0:00:05]}  d2+ {[%clk 0:00:15]} 45. Rxd2 {[%clk 0:00:06]}  Bxd2+ {[%clk 0:00:16]} 46. Kxd2 {[%clk 0:00:07]}  Nd5 {[%clk 0:00:16]} 47. a5 {[%clk 0:00:06]}  Nb4 {[%clk 0:00:16]} 48. Kc3 {[%clk 0:00:06]}  Na6 {[%clk 0:00:17]} 49. b4 {[%clk 0:00:06]}  Bg2 {[%clk 0:00:16]} 50. Kc4 {[%clk 0:00:06]}  Bf1+ {[%clk 0:00:16]} 51. Kd4 {[%clk 0:00:06]}  Bb5 {[%clk 0:00:17]} 52. Kc3 {[%clk 0:00:06]}  Kg6 {[%clk 0:00:18]} 53. Kd4 {[%clk 0:00:07]}  Kh5 {[%clk 0:00:19]} 54. Ke4 {[%clk 0:00:07]}  Kxh4 {[%clk 0:00:19]} 55. Ke5 {[%clk 0:00:08]}  Nxb4 {[%clk 0:00:19]} 56. Kd6 {[%clk 0:00:09]}  Na6 {[%clk 0:00:20]} 57. Kd7 {[%clk 0:00:09]}  Kg5 {[%clk 0:00:21]} 58. Kc8 {[%clk 0:00:10]}  Kg4 {[%clk 0:00:22]} 59. Kb7 {[%clk 0:00:11]}  Kg3 {[%clk 0:00:23]} 60. Ka7 {[%clk 0:00:11]}  Kg2 {[%clk 0:00:24]} 61. Kb7 {[%clk 0:00:12]}  Kg1 {[%clk 0:00:25]} 62. Kc8 {[%clk 0:00:12]}  Kh1 {[%clk 0:00:26]} 63. Kb7 {[%clk 0:00:13]}  Kh2 {[%clk 0:00:27]} 64. Kc8 {[%clk 0:00:13]}  Kh3 {[%clk 0:00:27]} 65. Kd7 {[%clk 0:00:14]}  Kh4 {[%clk 0:00:28]} 66. Ke6 {[%clk 0:00:15]}  Kh5 {[%clk 0:00:29]} 67. Ke5 {[%clk 0:00:16]}  Kh6 {[%clk 0:00:30]} 68. Kd4 {[%clk 0:00:17]}  Kg6 {[%clk 0:00:31]} 69. Kc3 {[%clk 0:00:18]}  Kg5 {[%clk 0:00:32]} 70. Kb3 {[%clk 0:00:19]}  Kf5 {[%clk 0:00:33]} 71. Kc3 {[%clk 0:00:20]}  Kf4 {[%clk 0:00:34]} 72. Kd4 {[%clk 0:00:21]}  Kf5 {[%clk 0:00:34]} 73. Ke3 {[%clk 0:00:21]}  Ke5 {[%clk 0:00:34]} 74. Kd2 {[%clk 0:00:22]}  Kd5 {[%clk 0:00:35]} 75. Kc3 {[%clk 0:00:23]}  Kc5 {[%clk 0:00:36]} 76. Kb3 {[%clk 0:00:24]}  Kd4 {[%clk 0:00:36]} 77. Ka3 {[%clk 0:00:24]}  Kc4 {[%clk 0:00:37]} 78. Kb2 {[%clk 0:00:24]}  Kb4 {[%clk 0:00:38]} 79. Ka2 {[%clk 0:00:24]}  c5 {[%clk 0:00:38]} 80. Kb2 {[%clk 0:00:25]}  Kxa5 {[%clk 0:00:39]} 81. Ka2 {[%clk 0:00:26]}  Kb4 {[%clk 0:00:40]} 82. Kb2 {[%clk 0:00:27]}  c4 {[%clk 0:00:41]} 83. Ka2 {[%clk 0:00:28]}  c3 {[%clk 0:00:42]} 84. Kb1 {[%clk 0:00:28]}  Kb3 {[%clk 0:00:42]} 85. Ka1 {[%clk 0:00:29]}  Nb4 {[%clk 0:00:41]} 86. Kb1 {[%clk 0:00:29]}  c2+ {[%clk 0:00:40]} 87. Kc1 {[%clk 0:00:30]}  Na2+ {[%clk 0:00:41]} 88. Kd2 {[%clk 0:00:30]}  c1=Q# {[%clk 0:00:41]} 0-1


[Site "https://www.chess.com"]

[Event "Titled Tuesday Blitz July 26 Early 2022"]
[White "Maksimenko, Viktor"]
[Black "Svane, Frederik"]
[WhiteFideId "13710478"]
[BlackFideId "12923044"]
[WhiteElo "2269"]
[BlackElo "2459"]
[Result "0-1"]
[Round "02"]
[TimeControl "180+1"]
[Date "2022.07.26"]
[WhiteClock "0:00:03"]
[BlackClock "0:00:15"]

1. d4 {[%clk 0:03:00]}  Nf6 {[%clk 0:02:59]} 2. c4 {[%clk 0:02:57]}  e6 {[%clk 0:03:00]} 3. Nf3 {[%clk 0:02:57]}  d5 {[%clk 0:03:00]} 4. g3 {[%clk 0:02:57]}  Bb4+ {[%clk 0:03:00]} 5. Bd2 {[%clk 0:02:57]}  Be7 {[%clk 0:03:01]} 6. Bg2 {[%clk 0:02:57]}  O-O {[%clk 0:03:01]} 7. O-O {[%clk 0:02:50]}  c6 {[%clk 0:03:02]} 8. Qb3 {[%clk 0:02:47]}  a5 {[%clk 0:03:02]} 9. Rc1 {[%clk 0:02:45]}  a4 {[%clk 0:03:00]} 10. Qd1 {[%clk 0:02:45]}  Nbd7 {[%clk 0:02:53]} 11. Na3 {[%clk 0:02:32]}  b6 {[%clk 0:02:48]} 12. e3 {[%clk 0:02:26]}  Bb7 {[%clk 0:02:48]} 13. Be1 {[%clk 0:02:22]}  Qb8 {[%clk 0:02:40]} 14. Qe2 {[%clk 0:02:19]}  Rd8 {[%clk 0:02:36]} 15. Nd2 {[%clk 0:02:10]}  c5 {[%clk 0:02:36]} 16. Nb5 {[%clk 0:02:06]}  dxc4 {[%clk 0:02:35]} 17. Nxc4 {[%clk 0:02:05]}  Bxg2 {[%clk 0:02:35]} 18. Kxg2 {[%clk 0:02:06]}  Nd5 {[%clk 0:02:08]} 19. e4 {[%clk 0:01:57]}  N5f6 {[%clk 0:02:08]} 20. Bc3 {[%clk 0:01:50]}  cxd4 {[%clk 0:02:04]} 21. Bxd4 {[%clk 0:01:50]}  Nc5 {[%clk 0:01:23]} 22. f3 {[%clk 0:01:38]}  Qb7 {[%clk 0:01:20]} 23. Rd1 {[%clk 0:01:33]}  Ne8 {[%clk 0:00:59]} 24. Rac1 {[%clk 0:01:30]}  Qa6 {[%clk 0:00:59]} 25. Ne5 {[%clk 0:01:23]}  Rac8 {[%clk 0:00:56]} 26. Nc3 {[%clk 0:01:18]}  Qb7 {[%clk 0:00:54]} 27. Rc2 {[%clk 0:01:07]}  Bf6 {[%clk 0:00:45]} 28. Qf2 {[%clk 0:00:47]}  Na6 {[%clk 0:00:23]} 29. Rcd2 {[%clk 0:00:45]}  b5 {[%clk 0:00:20]} 30. a3 {[%clk 0:00:42]}  h6 {[%clk 0:00:19]} 31. g4 {[%clk 0:00:25]}  Qb8 {[%clk 0:00:19]} 32. f4 {[%clk 0:00:21]}  Nd6 {[%clk 0:00:20]} 33. Qf3 {[%clk 0:00:19]}  Qb7 {[%clk 0:00:17]} 34. h4 {[%clk 0:00:17]}  Qa8 {[%clk 0:00:16]} 35. g5 {[%clk 0:00:16]}  hxg5 {[%clk 0:00:17]} 36. hxg5 {[%clk 0:00:17]}  Bxe5 {[%clk 0:00:18]} 37. Bxe5 {[%clk 0:00:18]}  Nc4 {[%clk 0:00:18]} 38. Rxd8+ {[%clk 0:00:18]}  Rxd8 {[%clk 0:00:19]} 39. Rxd8+ {[%clk 0:00:18]}  Qxd8 {[%clk 0:00:20]} 40. Nxb5 {[%clk 0:00:13]}  Nxe5 {[%clk 0:00:20]} 41. fxe5 {[%clk 0:00:14]}  Qxg5+ {[%clk 0:00:19]} 42. Kh3 {[%clk 0:00:14]}  Qxe5 {[%clk 0:00:19]} 43. Nc3 {[%clk 0:00:14]}  Nc5 {[%clk 0:00:19]} 44. Qe3 {[%clk 0:00:14]}  g5 {[%clk 0:00:18]} 45. Kg4 {[%clk 0:00:13]}  f6 {[%clk 0:00:16]} 46. Kh5 {[%clk 0:00:12]}  Kg7 {[%clk 0:00:16]} 47. Qd2 {[%clk 0:00:11]}  Qg3 {[%clk 0:00:15]} 48. Qe3 {[%clk 0:00:03]}  Qh4# {[%clk 0:00:15]} 0-1


[Site "https://www.chess.com"]

[Event "Titled Tuesday Blitz July 26 Early 2022"]
[White "Martinez Alcantara, Jose Eduardo"]
[Black "Bressac, Stephane"]
[WhiteFideId "3805662"]
[BlackFideId "655945"]
[WhiteElo "2703"]
[BlackElo "2321"]
[Result "1-0"]
[Round "02"]
[TimeControl "180+1"]
[Date "2022.07.26"]
[WhiteClock "0:00:32"]
[BlackClock "0:00:03"]

1. e4 {[%clk 0:03:00]}  d6 {[%clk 0:02:59]} 2. d4 {[%clk 0:03:00]}  Nf6 {[%clk 0:02:59]} 3. Bd3 {[%clk 0:02:57]}  e5 {[%clk 0:02:58]} 4. Nf3 {[%clk 0:02:57]}  Nbd7 {[%clk 0:02:56]} 5. c3 {[%clk 0:02:57]}  Be7 {[%clk 0:02:55]} 6. O-O {[%clk 0:02:57]}  O-O {[%clk 0:02:55]} 7. h3 {[%clk 0:02:56]}  c6 {[%clk 0:02:53]} 8. Re1 {[%clk 0:02:55]}  Qc7 {[%clk 0:02:49]} 9. a4 {[%clk 0:02:52]}  b6 {[%clk 0:02:46]} 10. Bg5 {[%clk 0:02:45]}  a6 {[%clk 0:02:35]} 11. Nbd2 {[%clk 0:02:44]}  Bb7 {[%clk 0:02:31]} 12. Nf1 {[%clk 0:02:32]}  Rfe8 {[%clk 0:02:28]} 13. Ng3 {[%clk 0:02:32]}  g6 {[%clk 0:02:28]} 14. Qd2 {[%clk 0:02:27]}  Rad8 {[%clk 0:01:43]} 15. Qc2 {[%clk 0:02:09]}  d5 {[%clk 0:01:06]} 16. exd5 {[%clk 0:01:46]}  Nxd5 {[%clk 0:01:04]} 17. Bxe7 {[%clk 0:01:32]}  Rxe7 {[%clk 0:01:04]} 18. Bc4 {[%clk 0:01:23]}  Rde8 {[%clk 0:00:48]} 19. Bxd5 {[%clk 0:01:23]}  cxd5 {[%clk 0:00:49]} 20. dxe5 {[%clk 0:01:22]}  Nxe5 {[%clk 0:00:50]} 21. Nd4 {[%clk 0:01:19]}  Nc4 {[%clk 0:00:51]} 22. Rxe7 {[%clk 0:01:17]}  Qxe7 {[%clk 0:00:49]} 23. Rd1 {[%clk 0:01:05]}  h5 {[%clk 0:00:46]} 24. b3 {[%clk 0:01:04]}  h4 {[%clk 0:00:40]} 25. Nf1 {[%clk 0:01:03]}  Nd6 {[%clk 0:00:40]} 26. f3 {[%clk 0:01:03]}  Bc8 {[%clk 0:00:39]} 27. Qf2 {[%clk 0:00:59]}  b5 {[%clk 0:00:35]} 28. a5 {[%clk 0:00:56]}  Nf5 {[%clk 0:00:34]} 29. b4 {[%clk 0:00:53]}  Nd6 {[%clk 0:00:33]} 30. Nc2 {[%clk 0:00:52]}  Bb7 {[%clk 0:00:31]} 31. Re1 {[%clk 0:00:52]}  Qd8 {[%clk 0:00:30]} 32. Rxe8+ {[%clk 0:00:52]}  Nxe8 {[%clk 0:00:30]} 33. Qd4 {[%clk 0:00:51]}  Qd6 {[%clk 0:00:21]} 34. Qxh4 {[%clk 0:00:49]}  Nc7 {[%clk 0:00:20]} 35. Nd4 {[%clk 0:00:45]}  Ne6 {[%clk 0:00:20]} 36. Qf6 {[%clk 0:00:40]}  Bc8 {[%clk 0:00:18]} 37. Ne3 {[%clk 0:00:35]}  Qd7 {[%clk 0:00:04]} 38. Ng4 {[%clk 0:00:31]}  Nxd4 {[%clk 0:00:04]} 39. Qxd4 {[%clk 0:00:32]}  f5 {[%clk 0:00:03]} 40. Nf6+ {[%clk 0:00:32]} 1-0


[Site "https://www.chess.com"]

[Event "Titled Tuesday Blitz July 26 Early 2022"]
[White "McCoy, Owen"]
[Black "Molina, Roberto Junio Brito"]
[WhiteFideId "30924502"]
[BlackFideId "2109450"]
[WhiteElo "2530"]
[BlackElo "2432"]
[Result "1/2-1/2"]
[Round "02"]
[TimeControl "180+1"]
[Date "2022.07.27"]
[WhiteClock "0:00:08"]
[BlackClock "0:00:06"]

1. Nf3 {[%clk 0:03:00]}  c6 {[%clk 0:03:00]} 2. g3 {[%clk 0:03:01]}  d5 {[%clk 0:03:01]} 3. Bg2 {[%clk 0:03:01]}  Bg4 {[%clk 0:03:01]} 4. O-O {[%clk 0:03:01]}  Nd7 {[%clk 0:03:02]} 5. d3 {[%clk 0:03:01]}  e6 {[%clk 0:03:01]} 6. Nbd2 {[%clk 0:02:54]}  Bd6 {[%clk 0:03:01]} 7. Qe1 {[%clk 0:02:42]}  Ne7 {[%clk 0:03:01]} 8. h3 {[%clk 0:02:37]}  Bh5 {[%clk 0:03:00]} 9. Nh4 {[%clk 0:02:34]}  O-O {[%clk 0:02:59]} 10. e4 {[%clk 0:02:26]}  Kh8 {[%clk 0:02:55]} 11. f4 {[%clk 0:02:20]}  f6 {[%clk 0:02:54]} 12. Ndf3 {[%clk 0:02:13]}  Qc7 {[%clk 0:02:47]} 13. g4 {[%clk 0:01:19]}  Bf7 {[%clk 0:02:44]} 14. f5 {[%clk 0:01:19]}  dxe4 {[%clk 0:02:36]} 15. dxe4 {[%clk 0:01:16]}  exf5 {[%clk 0:02:35]} 16. Nxf5 {[%clk 0:01:14]}  Bc5+ {[%clk 0:02:26]} 17. Kh1 {[%clk 0:01:13]}  Ng6 {[%clk 0:02:26]} 18. Qc3 {[%clk 0:01:00]}  Nge5 {[%clk 0:02:02]} 19. Bf4 {[%clk 0:00:57]}  Bb6 {[%clk 0:01:57]} 20. Rad1 {[%clk 0:00:55]}  Rae8 {[%clk 0:01:55]} 21. Nd6 {[%clk 0:00:39]}  Re7 {[%clk 0:01:46]} 22. Nxf7+ {[%clk 0:00:29]}  Rfxf7 {[%clk 0:01:40]} 23. Nxe5 {[%clk 0:00:20]}  Nxe5 {[%clk 0:01:36]} 24. g5 {[%clk 0:00:20]}  Qc8 {[%clk 0:01:06]} 25. gxf6 {[%clk 0:00:17]}  gxf6 {[%clk 0:01:07]} 26. Bxe5 {[%clk 0:00:14]}  Rxe5 {[%clk 0:00:51]} 27. Rxf6 {[%clk 0:00:14]}  Rxf6 {[%clk 0:00:26]} 28. Qxe5 {[%clk 0:00:14]}  Qe6 {[%clk 0:00:19]} 29. Qxe6 {[%clk 0:00:12]}  Rxe6 {[%clk 0:00:20]} 30. Rd7 {[%clk 0:00:13]}  Rf6 {[%clk 0:00:13]} 31. Rxb7 {[%clk 0:00:12]}  Rf2 {[%clk 0:00:13]} 32. e5 {[%clk 0:00:09]}  Re2 {[%clk 0:00:13]} 33. Bxc6 {[%clk 0:00:06]}  Rxe5 {[%clk 0:00:13]} 34. Ba4 {[%clk 0:00:05]}  Re4 {[%clk 0:00:13]} 35. Bb3 {[%clk 0:00:05]}  h5 {[%clk 0:00:13]} 36. Rb8+ {[%clk 0:00:05]}  Kg7 {[%clk 0:00:12]} 37. Rb7+ {[%clk 0:00:05]}  Kf6 {[%clk 0:00:12]} 38. Kg2 {[%clk 0:00:06]}  Re2+ {[%clk 0:00:11]} 39. Kf3 {[%clk 0:00:06]}  Rf2+ {[%clk 0:00:11]} 40. Kg3 {[%clk 0:00:06]}  Rd2 {[%clk 0:00:11]} 41. Rf7+ {[%clk 0:00:06]}  Kg6 {[%clk 0:00:11]} 42. Rf1 {[%clk 0:00:03]}  Bc7+ {[%clk 0:00:11]} 43. Kf3 {[%clk 0:00:03]}  Rh2 {[%clk 0:00:10]} 44. Rg1+ {[%clk 0:00:04]}  Kf5 {[%clk 0:00:09]} 45. Rf1 {[%clk 0:00:03]}  Kg5 {[%clk 0:00:07]} 46. a4 {[%clk 0:00:03]}  Rxh3+ {[%clk 0:00:07]} 47. Ke4 {[%clk 0:00:03]}  Rg3 {[%clk 0:00:06]} 48. Rf5+ {[%clk 0:00:03]}  Kg4 {[%clk 0:00:05]} 49. Rf8 {[%clk 0:00:02]}  Rg1 {[%clk 0:00:03]} 50. Be6+ {[%clk 0:00:02]}  Kh4 {[%clk 0:00:04]} 51. Rf3 {[%clk 0:00:01]}  Re1+ {[%clk 0:00:03]} 52. Kd5 {[%clk 0:00:02]}  Re5+ {[%clk 0:00:02]} 53. Kc6 {[%clk 0:00:02]}  Rxe6+ {[%clk 0:00:03]} 54. Kxc7 {[%clk 0:00:03]}  Rb6 {[%clk 0:00:03]} 55. a5 {[%clk 0:00:03]}  Rxb2 {[%clk 0:00:02]} 56. c4 {[%clk 0:00:03]}  Ra2 {[%clk 0:00:02]} 57. Kb7 {[%clk 0:00:03]}  Rxa5 {[%clk 0:00:02]} 58. Rc3 {[%clk 0:00:03]}  Rc5 {[%clk 0:00:03]} 59. Kxa7 {[%clk 0:00:03]}  Kg5 {[%clk 0:00:03]} 60. Kb6 {[%clk 0:00:04]}  Rc8 {[%clk 0:00:04]} 61. c5 {[%clk 0:00:05]}  h4 {[%clk 0:00:05]} 62. c6 {[%clk 0:00:05]}  Kg4 {[%clk 0:00:05]} 63. Kb7 {[%clk 0:00:06]}  Rh8 {[%clk 0:00:04]} 64. c7 {[%clk 0:00:06]}  h3 {[%clk 0:00:05]} 65. Rc4+ {[%clk 0:00:06]}  Kg3 {[%clk 0:00:05]} 66. Rc3+ {[%clk 0:00:06]}  Kg4 {[%clk 0:00:06]} 67. Rxh3 {[%clk 0:00:06]}  Kxh3 {[%clk 0:00:06]} 68. c8=Q+ {[%clk 0:00:07]}  Rxc8 {[%clk 0:00:06]} 69. Kxc8 {[%clk 0:00:08]} 1/2-1/2


[Site "https://www.chess.com"]

[Event "Titled Tuesday Blitz July 26 Early 2022"]
[White "Meshkovs, Nikita"]
[Black "Kozin, Yuri"]
[WhiteFideId "11602740"]
[BlackFideId "4129920"]
[WhiteElo "2506"]
[BlackElo "2536"]
[Result "1-0"]
[Round "02"]
[TimeControl "180+1"]
[Date "2022.07.27"]
[WhiteClock "0:00:17"]
[BlackClock "0:00:15"]

1. e4 {[%clk 0:02:39]}  c5 {[%clk 0:03:00]} 2. Nf3 {[%clk 0:02:38]}  e6 {[%clk 0:03:00]} 3. d4 {[%clk 0:02:38]}  cxd4 {[%clk 0:03:01]} 4. Nxd4 {[%clk 0:02:38]}  a6 {[%clk 0:03:01]} 5. c4 {[%clk 0:02:38]}  Qc7 {[%clk 0:03:02]} 6. Nc3 {[%clk 0:02:38]}  Nf6 {[%clk 0:03:02]} 7. a3 {[%clk 0:02:35]}  Nxe4 {[%clk 0:03:03]} 8. Nxe4 {[%clk 0:02:34]}  Qe5 {[%clk 0:03:04]} 9. Be3 {[%clk 0:02:10]}  Qxe4 {[%clk 0:03:02]} 10. Be2 {[%clk 0:02:09]}  Qxg2 {[%clk 0:03:00]} 11. Bf3 {[%clk 0:02:09]}  Qg6 {[%clk 0:02:57]} 12. Qa4 {[%clk 0:01:38]}  Be7 {[%clk 0:02:46]} 13. h4 {[%clk 0:01:30]}  Nc6 {[%clk 0:02:25]} 14. O-O-O {[%clk 0:01:20]}  Nxd4 {[%clk 0:01:57]} 15. Rxd4 {[%clk 0:01:06]}  O-O {[%clk 0:01:45]} 16. Qd1 {[%clk 0:00:48]}  e5 {[%clk 0:01:08]} 17. Rg4 {[%clk 0:00:41]}  Qe6 {[%clk 0:01:00]} 18. Rhg1 {[%clk 0:00:37]}  g6 {[%clk 0:00:51]} 19. Bd5 {[%clk 0:00:36]}  Qf5 {[%clk 0:00:40]} 20. h5 {[%clk 0:00:30]}  Qxh5 {[%clk 0:00:27]} 21. Rxg6+ {[%clk 0:00:20]}  Qxg6 {[%clk 0:00:28]} 22. Rxg6+ {[%clk 0:00:20]}  hxg6 {[%clk 0:00:28]} 23. Bh6 {[%clk 0:00:19]}  Re8 {[%clk 0:00:24]} 24. Qf3 {[%clk 0:00:17]}  Kh7 {[%clk 0:00:21]} 25. Qxf7+ {[%clk 0:00:18]}  Kxh6 {[%clk 0:00:22]} 26. Qxe8 {[%clk 0:00:17]}  Bf6 {[%clk 0:00:19]} 27. Qf7 {[%clk 0:00:17]}  Kg5 {[%clk 0:00:19]} 28. Be4 {[%clk 0:00:17]}  Bd8 {[%clk 0:00:16]} 29. Qxg6+ {[%clk 0:00:17]}  Kf4 {[%clk 0:00:17]} 30. Kd2 {[%clk 0:00:17]}  d5 {[%clk 0:00:17]} 31. cxd5 {[%clk 0:00:17]}  Bg4 {[%clk 0:00:17]} 32. Kd3 {[%clk 0:00:17]}  Bh4 {[%clk 0:00:15]} 33. Qh6+ {[%clk 0:00:17]}  Bg5 {[%clk 0:00:15]} 34. Qh2# {[%clk 0:00:17]} 1-0


[Site "https://www.chess.com"]

[Event "Titled Tuesday Blitz July 26 Early 2022"]
[White "Nakamura, Hikaru"]
[Black "Korchmar, Vasiliy"]
[WhiteFideId "2016192"]
[BlackFideId "24131750"]
[WhiteElo "2850"]
[BlackElo "2370"]
[Result "1-0"]
[Round "02"]
[TimeControl "180+1"]
[Date "2022.07.26"]
[WhiteClock "0:01:32"]
[BlackClock "0:00:02"]

1. g3 {[%clk 0:03:00]}  d5 {[%clk 0:02:59]} 2. Bg2 {[%clk 0:03:00]}  g6 {[%clk 0:03:00]} 3. d3 {[%clk 0:03:00]}  Bg7 {[%clk 0:03:00]} 4. Nc3 {[%clk 0:02:59]}  c6 {[%clk 0:03:00]} 5. Bd2 {[%clk 0:02:58]}  e5 {[%clk 0:02:59]} 6. e4 {[%clk 0:02:58]}  Ne7 {[%clk 0:02:57]} 7. Qc1 {[%clk 0:02:58]}  h6 {[%clk 0:02:39]} 8. Nf3 {[%clk 0:02:49]}  d4 {[%clk 0:02:30]} 9. Ne2 {[%clk 0:02:48]}  c5 {[%clk 0:02:25]} 10. c3 {[%clk 0:02:43]}  Nbc6 {[%clk 0:02:25]} 11. cxd4 {[%clk 0:02:43]}  cxd4 {[%clk 0:02:23]} 12. b4 {[%clk 0:02:42]}  Be6 {[%clk 0:02:03]} 13. b5 {[%clk 0:02:33]}  Na5 {[%clk 0:02:02]} 14. O-O {[%clk 0:02:32]}  b6 {[%clk 0:01:51]} 15. Bb4 {[%clk 0:02:29]}  Qd7 {[%clk 0:01:44]} 16. Qa3 {[%clk 0:02:25]}  Nb7 {[%clk 0:01:24]} 17. Rfc1 {[%clk 0:02:22]}  Nc8 {[%clk 0:00:32]} 18. Rc6 {[%clk 0:01:48]}  Nd8 {[%clk 0:00:31]} 19. Rc2 {[%clk 0:01:44]}  Nb7 {[%clk 0:00:25]} 20. Nfxd4 {[%clk 0:01:33]}  exd4 {[%clk 0:00:23]} 21. e5 {[%clk 0:01:33]}  Bd5 {[%clk 0:00:16]} 22. Bxd5 {[%clk 0:01:31]}  Qxd5 {[%clk 0:00:17]} 23. Nf4 {[%clk 0:01:32]}  Qxb5 {[%clk 0:00:07]} 24. e6 {[%clk 0:01:32]}  a5 {[%clk 0:00:03]} 25. Rc7 {[%clk 0:01:32]}  Qxb4 {[%clk 0:00:02]} 26. exf7+ {[%clk 0:01:32]} 1-0


[Site "https://www.chess.com"]